bitfinex-derivatives/quotes_SOLF0:USTF0_20250816
["timestamp","ask_amount","ask_price","bid_price","bid_amount"]
[1755337827433,3.04,187.13,187.12,0.03779989]
[1755337827834,7.10821345,187.13,187.12,0.03779989]
[1755337828328,3.04,187.13,187.12,0.03779989]
[1755337828629,7.10962188,187.13,187.12,0.03779989]
[1755337831827,3.04,187.13,187.12,0.03779989]
[1755337832031,3.04,187.13,187.12,3.03779989]
[1755337832333,4.35767571,187.18,187.12,3.03779989]
[1755337832528,3.04,187.16,187.13,3.0]
[1755337832746,4.35767571,187.21,187.12,0.03779989]
[1755337832926,4.07382682,187.2,187.16,3.0]
[1755337833130,3.04,187.17,187.16,3.0]
[1755337833533,3.04,187.22,187.12,134.22]
[1755337833732,3.04,187.2,187.12,134.22]
[1755337833931,3.04,187.18,187.15,0.03777371]
[1755337834127,3.04,187.16,187.15,3.03777371]
[1755337834333,3.04,187.17,187.16,3.0]
[1755337834737,3.04,187.17,187.16,8.339]
[1755337834938,4.35767571,187.25,187.16,3.0]
[1755337835137,3.04,187.18,187.16,3.0]
[1755337835338,3.04,187.18,187.17,5.3387]
[1755337835537,3.04,187.25,187.17,3.0]
[1755337835738,2.87730843,187.27,187.17,3.0]
[1755337835739,3.04,187.23,187.17,3.0]
[1755337836131,4.07471604,187.22,187.15,3.0]
[1755337836432,6.95134909,187.21,187.1,8.3408]
[1755337836632,3.04,187.19,187.1,3.0]
[1755337837138,3.04,187.19,187.12,5.3404]
[1755337837638,4.07362218,187.18,187.08,2.87730843]
[1755337837833,2.87730843,187.21,187.09,3.0]
[1755337837834,3.04,187.17,187.09,3.0]
[1755337838043,0.03419843,187.15,187.09,3.0]
[1755337838340,3.04,187.14,187.09,3.0]
[1755337838736,3.04,187.14,187.09,5.3412]
[1755337839341,3.04,187.14,187.08,3.0]
[1755337840034,3.04,187.14,187.1,5.3408]
[1755337840436,3.04,187.14,187.1,8.3408]
[1755337841144,3.04,187.14,187.09,3.0]
[1755337841438,3.04,187.14,187.06,3.0]
[1755337841938,3.04,187.14,187.07,5.3417]
[1755337842236,3.04,187.12,187.04,3.0]
[1755337842430,4.07745007,187.11,187.04,3.0]
[1755337842634,3.04,187.09,187.04,3.0]
[1755337843034,3.04,187.09,187.05,3.0]
[1755337843438,3.04,187.09,187.01,3.0]
[1755337843439,4.11424887,187.08,187.01,3.0]
[1755337843642,3.04,187.07,187.01,3.0]
[1755337843840,3.04,187.07,187.02,5.343]
[1755337844039,3.04,187.07,187.01,3.0]
[1755337845833,3.04,187.07,187.0,134.26]
[1755337846039,3.04,187.05,186.99,3.0]
[1755337846240,3.04,187.03,186.97,3.0]
[1755337846438,3.04,187.03,186.97,8.3447]
[1755337846845,0.03417851,187.02,186.99,3.0]
[1755337847044,3.07417851,187.02,187.0,3.0]
[1755337847240,3.04,187.01,187.0,3.0]
[1755337847444,0.03417851,187.02,186.97,3.0]
[1755337847744,3.04,187.1,187.0,3.0]
[1755337847942,3.04,187.1,187.01,2.87730843]
[1755337848139,4.07437211,187.09,186.98,2.87730843]
[1755337848334,7.11328941,187.08,187.0,3.0]
[1755337848535,3.14,187.06,187.01,5.3433]
[1755337848740,3.14,187.06,187.01,8.3233]
[1755337849041,3.14,187.06,187.02,0.03774525]
[1755337849240,3.14,187.06,187.02,3.01774525]
[1755337849442,3.14,187.11,187.02,3.01774525]
[1755337849637,3.14,187.09,187.06,2.98]
[1755337849846,3.14,187.09,187.04,2.87730843]
[1755337849847,3.14,187.09,187.07,2.98]
[1755337850146,3.14,187.09,187.08,8.3215]
[1755337850340,7.23498414,187.16,187.04,2.87730843]
[1755337850541,3.14,187.14,187.04,5.3426]
[1755337850751,3.14,187.12,187.02,2.98]
[1755337850943,3.14,187.1,186.99,2.98]
[1755337851146,3.14,187.08,187.0,2.98]
[1755337851354,4.0717904,187.07,187.0,2.98]
[1755337851548,3.14,187.06,187.0,2.98]
[1755337852646,4.35767571,187.12,187.04,2.98]
[1755337852844,0.03484629,187.05,187.04,2.98]
[1755337853038,3.17484629,187.05,187.04,2.98]
[1755337853240,3.14,187.05,187.04,2.98]
[1755337853440,7.49767571,187.12,187.01,5.3434]
[1755337853642,3.14,187.1,187.01,5.3434]
[1755337853846,3.17775192,187.08,187.0,2.98]
[1755337854047,3.17775192,187.08,187.0,8.3236]
[1755337854248,3.17775192,187.08,187.0,2.98]
[1755337854751,3.17775192,187.08,187.01,5.3433]
[1755337854951,3.17775192,187.08,187.01,8.3233]
[1755337856059,3.17775192,187.08,187.03,2.98]
[1755337858364,3.17775192,187.08,187.04,2.98]
[1755337858663,3.17775192,187.08,186.98,4.53734609]
[1755337858861,0.03775192,187.08,187.03,2.98]
[1755337859261,3.14,187.1,187.03,2.98]
[1755337859660,0.03766184,187.07,187.05,5.3422]
[1755337859860,3.17766184,187.07,187.06,2.98]
[1755337860065,3.17766184,187.07,187.05,2.98]
[1755337860265,0.03766184,187.07,187.03,2.98]
[1755337860966,0.03766184,187.07,187.06,2.98]
[1755337861563,0.03766184,187.07,187.06,8.3221]
[1755337866472,3.14,187.12,187.1,2.98]
[1755337866667,3.14,187.18,187.07,2.98]
[1755337866868,4.07595753,187.17,187.12,5.3402]
[1755337867075,3.14,187.15,187.08,2.98]
[1755337867274,4.07600618,187.14,187.03,4.53734609]
[1755337867570,3.14,187.15,187.08,5.3415]
[1755337868163,3.14,187.15,187.08,8.3215]
[1755337868360,4.35767571,187.19,187.08,8.3215]
[1755337868572,3.14,187.13,187.08,2.98]
[1755337869166,3.14,187.13,187.09,0.0345562]
[1755337869868,3.14,187.13,187.09,3.0145562]
[1755337870264,4.35767571,187.18,187.11,2.98]
[1755337870572,3.14,187.16,187.11,2.98]
[1755337870771,3.14,187.14,187.11,2.98]
[1755337871174,3.14,187.14,187.1,8.3209]
[1755337871477,3.14,187.14,187.1,2.98]
[1755337871675,3.14,187.14,187.09,5.3757562]
[1755337871968,3.14,187.14,187.09,3.0145562]
[1755337872568,3.14,187.14,187.09,0.0345562]
[1755337872766,4.07543607,187.13,187.09,0.0345562]
[1755337872966,3.14,187.12,187.09,0.0345562]
[1755337874171,4.07520864,187.11,187.09,0.0345562]
[1755337874372,7.21520864,187.1,187.09,0.0345562]
[1755337877579,7.21520864,187.1,187.09,3.0145562]
[1755337877876,7.21520864,187.1,187.09,0.0345562]
[1755337881080,8.43288435,187.1,187.03,2.91]
[1755337881284,2.96,187.08,187.0,2.91]
[1755337881578,2.96,187.06,187.0,2.91]
[1755337881787,2.96,187.04,187.0,2.91]
[1755337881984,2.96,187.04,186.97,2.91]
[1755337882180,4.08239504,187.03,186.97,2.91]
[1755337882387,2.96,187.02,186.98,2.91]
[1755337882685,2.96,187.02,186.86,359.06]
[1755337882686,2.96,187.06,186.89,1.52211336]
[1755337882979,2.87714439,186.9,186.71,2.87714439]
[1755337883177,4.35767571,186.91,186.75,2.91]
[1755337883178,2.96,186.86,186.75,2.91]
[1755337883382,2.96,186.84,186.75,2.91]
[1755337883577,2.96,186.82,186.75,2.91]
[1755337883885,2.96,186.8,186.69,2.91]
[1755337884279,2.96,186.8,186.7,5.3524]
[1755337884477,2.96,186.78,186.71,2.91]
[1755337884684,0.03586534,186.76,186.71,2.91]
[1755337884881,2.96,186.75,186.66,2.91]
[1755337885088,2.96,186.75,186.62,0.59492399]
[1755337885387,0.03586534,186.76,186.62,0.59492399]
[1755337885388,7.51422889,186.73,186.62,0.59492399]
[1755337885590,2.96,186.68,186.62,0.59492399]
[1755337885786,2.96,186.66,186.62,0.59492399]
[1755337886084,2.96,186.62,186.41,2.91]
[1755337886280,2.96,186.58,186.48,0.93267581]
[1755337886584,2.96,186.56,186.43,2.91]
[1755337886784,2.96,186.54,186.43,2.91]
[1755337886984,1.66501788,186.53,186.4,7.46422889]
[1755337887287,1.66501788,186.52,186.41,2.91]
[1755337887490,1.66501788,186.51,186.41,2.91]
[1755337887689,3.89327612,186.58,186.44,4.55422889]
[1755337887885,3.89327612,186.58,186.45,2.91]
[1755337888088,2.96,186.63,186.53,2.91]
[1755337888388,8.75843266,186.62,186.53,2.91]
[1755337888589,2.96,186.6,186.55,2.91]
[1755337888886,363.85767571,186.7,186.53,2.91]
[1755337889085,2.96,186.68,186.61,2.91]
[1755337889291,4.15105932,186.67,186.61,2.91]
[1755337889489,2.96,186.68,186.61,2.91]
[1755337889693,2.96,186.61,186.36,3.84330115]
[1755337889989,2.96,186.57,186.39,2.91]
[1755337890286,2.96,186.53,186.42,2.91]
[1755337890591,2.96,186.61,186.45,4.55422889]
[1755337890781,2.96,186.59,186.46,2.91]
[1755337890987,2.96,186.57,186.46,2.91]
[1755337891184,2.96,186.55,186.46,2.91]
[1755337891381,2.96,186.53,186.46,2.91]
[1755337891689,4.12722621,186.52,186.46,2.91]
[1755337891992,2.96,186.58,186.4,2.91]
[1755337892188,2.96,186.58,186.55,2.91]
[1755337892386,372.8306454,186.73,186.56,2.91]
[1755337892687,4.11104612,186.72,186.54,7.82046882]
[1755337892890,2.96,186.69,186.55,2.91]
[1755337893692,0.03407433,186.64,186.61,5.3547]
[1755337893892,0.03407433,186.64,186.53,7.82046882]
[1755337894086,2.96,186.63,186.46,2.91]
[1755337894488,2.96,186.61,186.46,2.91]
[1755337895392,2.96,186.64,186.55,2.91]
[1755337895892,2.96,186.64,186.57,2.91]
[1755337896094,0.93250087,186.73,186.56,2.91]
[1755337896292,4.11082656,186.72,186.56,7.82046882]
[1755337896484,2.96,186.76,186.57,2.91]
[1755337896691,2.96,186.76,186.61,2.91]
[1755337896893,2.96,186.76,186.7,5.3524]
[1755337897092,367.64046882,186.87,186.7,2.91]
[1755337897293,2.96,186.85,186.7,2.91]
[1755337897589,2.96,186.83,186.7,2.91]
[1755337897890,2.96,186.83,186.78,5.3501]
[1755337897891,0.03736078,186.79,186.78,5.3501]
[1755337898090,0.03736078,186.79,186.78,8.2601]
[1755337898493,0.03736078,186.79,186.78,2.91]
[1755337898992,2.96,186.89,186.81,2.91]
[1755337899593,2.96,186.89,186.85,2.91]
[1755337900096,2.96,186.88,186.81,2.91]
[1755337900291,0.93144012,186.93,186.85,0.03566813]
[1755337900490,0.0362206,186.86,186.77,2.91]
[1755337900688,2.96,186.85,186.68,2.91]
[1755337901191,2.96,186.82,186.68,2.91]
[1755337901395,2.96,186.8,186.68,2.91]
[1755337901599,2.96,186.78,186.68,2.91]
[1755337901896,2.99921324,186.76,186.68,2.91]
[1755337902090,0.03921324,186.76,186.7,2.91]
[1755337902292,4.35767571,186.91,186.7,2.91]
[1755337902293,2.96,186.83,186.7,2.91]
[1755337902685,0.03633117,186.75,186.7,2.91]
[1755337903302,0.03633117,186.75,186.74,8.2613]
[1755337904194,0.03633117,186.75,186.74,2.91]
[1755337904401,0.03633117,186.75,186.66,2.91]
[1755337904600,2.99633117,186.75,186.66,2.91]
[1755337904803,2.96,186.75,186.66,2.91]
[1755337905190,0.03709233,186.72,186.66,2.91]
[1755337905402,2.99709233,186.72,186.66,2.91]
[1755337905603,2.96,186.72,186.66,2.91]
[1755337905804,2.96,186.72,186.55,2.91]
[1755337905999,0.03636321,186.71,186.55,2.91]
[1755337906303,2.96,186.7,186.58,5.3556]
[1755337906504,2.96,186.7,186.59,2.91]
[1755337906801,157.59767571,186.79,186.59,2.91]
[1755337906802,0.0365752,186.65,186.59,2.91]
[1755337907296,5.3544,186.64,186.59,2.91]
[1755337907502,5.3544,186.64,186.58,2.91]
[1755337908306,2.96,186.66,186.58,2.91]
[1755337908506,0.03811914,186.63,186.58,2.91]
[1755337908705,0.03811914,186.63,186.53,3.02]
[1755337909010,3.12,186.62,186.55,3.02]
[1755337909301,3.12,186.62,186.52,3.02]
[1755337909905,3.12,186.62,186.58,3.02]
[1755337910108,0.03393584,186.59,186.58,3.02]
[1755337910311,0.03393584,186.59,186.51,5.3576]
[1755337910614,0.03393584,186.59,186.52,3.02]
[1755337910805,3.12,186.6,186.53,5.3571]
[1755337911005,0.03446379,186.57,186.53,5.3571]
[1755337911206,0.03446379,186.57,186.55,3.02]
[1755337912510,0.03446379,186.57,186.56,5.3564]
[1755337912708,0.03446379,186.57,186.56,8.3764]
[1755337913508,0.03446379,186.57,186.56,3.02]
[1755337913715,0.03446379,186.57,186.44,12.53935781]
[1755337913716,0.03446379,186.57,186.45,3.02]
[1755337914108,3.12,186.56,186.45,3.02]
[1755337914313,4.35767571,186.68,186.45,3.02]
[1755337914514,0.03460676,186.53,186.45,3.02]
[1755337914809,3.12,186.59,186.51,5.3576]
[1755337915009,3.12,186.59,186.42,359.78]
[1755337915010,3.12,186.59,186.52,3.02]
[1755337915816,0.03783359,186.57,186.52,3.02]
[1755337916017,0.03783359,186.57,186.53,3.02]
[1755337916218,0.03783359,186.57,186.45,3.02]
[1755337916411,3.12,186.59,186.45,3.02]
[1755337916814,359.86,186.69,186.45,3.02]
[1755337916815,0.03401578,186.53,186.45,3.02]
[1755337917116,3.12,186.63,186.53,3.02]
[1755337918318,3.12,186.63,186.6,8.3752]
[1755337918515,3.12,186.68,186.58,3.02]
[1755337918716,3.12,186.66,186.6,5.3552]
[1755337918916,3.12,186.66,186.6,3.02]
[1755337919420,3.12,186.68,186.61,5.3903042]
[1755337919622,4.14077079,186.67,186.61,0.0353042]
[1755337919822,3.12,186.65,186.61,0.0353042]
[1755337920222,3.12,186.69,186.62,3.02]
[1755337920418,4.1447601,186.68,186.62,3.02]
[1755337920620,3.12,186.72,186.62,3.02]
[1755337920826,3.12,186.7,186.61,0.0353042]
[1755337921020,3.12,186.68,186.6,3.02]
[1755337921224,4.14970298,186.67,186.6,3.02]
[1755337921425,3.12,186.67,186.64,0.03973857]
[1755337921627,3.12,186.66,186.64,0.03973857]
[1755337922128,3.12,186.71,186.63,3.02]
[1755337922421,4.15097974,186.7,186.63,3.06063913]
[1755337922727,4.15097974,186.69,186.63,3.06063913]
[1755337922929,3.12,186.71,186.63,3.06063913]
[1755337923128,4.15837439,186.7,186.63,3.06063913]
[1755337923325,4.15837439,186.69,186.63,3.06063913]
[1755337923631,4.15837439,186.68,186.66,5.3533]
[1755337923829,3.12,186.74,186.67,3.02]
[1755337924029,3.12,186.72,186.67,3.02]
[1755337924236,3.12,186.7,186.67,8.3732]
[1755337924428,4.1656308,186.69,186.67,8.3732]
[1755337924631,4.1656308,186.68,186.67,8.3732]
[1755337925530,2.07563081,186.68,186.67,8.3732]
[1755337925728,3.12,186.73,186.67,8.3732]
[1755337925928,3.12,186.71,186.67,3.02]
[1755337926132,3.19173537,186.7,186.68,3.02]
[1755337926430,3.19231139,186.69,186.68,3.02]
[1755337926629,4.35767571,186.72,186.66,0.03416007]
[1755337926829,3.19277913,186.71,186.66,0.03416007]
[1755337927029,4.35767571,186.73,186.66,0.03416007]
[1755337927330,3.19278483,186.72,186.7,3.02]
[1755337927533,3.19278483,186.71,186.7,3.02]
[1755337928025,3.19278483,186.71,186.7,8.3724]
[1755337929732,4.35767571,186.74,186.73,8.3715]
[1755337929933,3.10711552,186.74,186.73,3.02]
[1755337930133,7.7391887,186.74,186.69,5.3526]
[1755337930436,4.38750354,186.75,186.69,3.02]
[1755337930636,4.38750354,186.75,186.73,3.02]
[1755337930832,5.89298679,186.74,186.68,3.02]
[1755337931032,4.38750354,186.72,186.57,150.56]
[1755337931340,3.12,186.71,186.65,3.02]
[1755337931534,3.12,186.69,186.65,3.02]
[1755337931729,3.12,186.68,186.65,3.02]
[1755337932533,4.38750354,186.72,186.66,3.02]
[1755337932839,3.12,186.73,186.66,3.02]
[1755337933140,150.5,186.87,186.66,3.02]
[1755337933141,4.38750354,186.75,186.66,3.02]
[1755337933340,4.38750354,186.75,186.64,7.80934146]
[1755337933341,4.38750354,186.75,186.69,3.02]
[1755337933741,4.38750354,186.75,186.72,5.3516]
[1755337933938,4.38750354,186.75,186.68,0.03767725]
[1755337933939,3.12,186.74,186.68,3.05767725]
[1755337934334,3.12,186.74,186.71,3.02]
[1755337935646,3.12,186.74,186.72,3.02]
[1755337935843,4.38750354,186.76,186.72,3.02]
[1755337936139,4.38750354,186.76,186.68,0.03767725]
[1755337936140,7.50750354,186.79,186.69,3.02]
[1755337936538,3.12,186.79,186.72,0.04112962]
[1755337936738,3.12,186.79,186.73,3.02]
[1755337937444,4.38750354,186.81,186.73,3.02]
[1755337937445,3.12,186.78,186.73,3.02]
[1755337937747,4.11756875,186.77,186.75,3.02]
[1755337937942,4.11756875,186.76,186.75,8.371]
[1755337938247,4.38750354,186.85,186.75,3.02]
[1755337938442,4.11657293,186.84,186.75,3.02]
[1755337938639,3.11,186.87,186.76,3.06]
[1755337938942,88.32206623,186.92,186.83,5.3486]
[1755337938943,3.11,186.86,186.83,5.3486]
[1755337939239,3.11,186.84,186.81,3.06]
[1755337939442,3.11,186.84,186.75,7.80934146]
[1755337939443,4.38750354,186.9,186.82,3.06]
[1755337939745,3.11,186.88,186.82,3.06]
[1755337940149,3.11,186.88,186.81,0.03796761]
[1755337940335,4.38750354,186.91,186.81,0.03796761]
[1755337940538,4.38750354,186.92,186.85,5.3481]
[1755337940735,3.11,186.91,186.84,3.06]
[1755337940942,3.11,186.91,186.81,3.09796761]
[1755337941145,3.11,186.91,186.81,3.06]
[1755337941544,3.11,186.91,186.86,0.03583216]
[1755337942647,3.11,186.9,186.86,0.03583216]
[1755337943147,3.11,186.94,186.86,0.03583216]
[1755337943347,3.11,186.94,186.87,3.06]
[1755337943842,3.11,186.94,186.86,0.03583216]
[1755337944547,5.3467,186.9,186.86,0.03583216]
[1755337944748,3.11,186.96,186.86,0.03583216]
[1755337945250,5.31880656,186.97,186.86,0.03583216]
[1755337945251,8.4575,186.87,186.86,0.03583216]
[1755337945645,4.38750354,186.95,186.86,0.03583216]
[1755337945846,8.4573,186.88,186.86,0.03583216]
[1755337946150,3.11,186.94,186.86,3.09583216]
[1755337946342,5.3463,186.92,186.86,3.09583216]
[1755337946544,8.4563,186.92,186.86,3.09583216]
[1755337947047,3.11,186.88,186.86,0.03583216]
[1755337947451,3.11,186.87,186.86,0.03583216]
[1755337948247,5.3472,186.89,186.86,0.03583216]
[1755337948448,3.11,186.95,186.86,3.09583216]
[1755337949050,3.11,186.95,186.86,0.03583216]
[1755337949051,3.11,186.94,186.86,0.03583216]
[1755337949647,7.49750354,186.94,186.86,0.03583216]
[1755337949950,3.11,186.93,186.86,0.03583216]
[1755337950150,3.11,186.93,186.86,3.09583216]
[1755337950346,4.0475996,186.92,186.86,0.03583216]
[1755337950551,7.1575996,186.91,186.86,0.03583216]
[1755337950755,3.11,186.89,186.86,0.03583216]
[1755337951053,7.49750354,186.94,186.86,0.03583216]
[1755337951252,3.11,186.92,186.86,0.03583216]
[1755337951454,3.11,186.9,186.86,0.03583216]
[1755337951752,3.11,186.87,186.86,0.03583216]
[1755337952755,3.11,186.94,186.86,0.03583216]
[1755337952956,3.11,186.92,186.86,0.03583216]
[1755337953149,3.11,186.9,186.86,0.03583216]
[1755337953656,3.11,186.93,186.86,0.03583216]
[1755337953853,3.11,186.91,186.86,0.03583216]
[1755337954153,3.11,186.89,186.87,3.06]
[1755337954562,4.36988329,186.98,186.91,5.3464]
[1755337954747,103.72742421,187.03,186.92,3.06]
[1755337955057,7.14117254,187.02,186.92,3.06]
[1755337955259,3.11,187.02,186.96,3.06]
[1755337955557,3.11,187.04,186.96,3.06]
[1755337955958,3.11,187.04,186.97,0.04101521]
[1755337956152,3.11,187.04,186.99,5.344]
[1755337956353,3.11,187.08,186.99,3.06]
[1755337956554,3.11,187.06,186.99,3.06]
[1755337956855,3.11,187.03,187.0,3.06]
[1755337957069,3.11,187.03,187.01,0.04010492]
[1755337957752,3.11,187.08,187.01,3.10010492]
[1755337958155,3.11,187.11,187.01,3.10010492]
[1755337958361,3.11,187.09,187.01,3.10010492]
[1755337958553,3.11,187.07,187.01,3.10010492]
[1755337959058,4.0274644,187.06,187.01,0.04010492]
[1755337959255,7.47988329,187.1,187.01,0.04010492]
[1755337959459,3.11,187.08,187.01,0.04010492]
[1755337959659,4.02994864,187.07,187.01,0.04010492]
[1755337959857,7.13994864,187.06,187.01,0.04010492]
[1755337960059,3.11,187.1,187.01,0.04010492]
[1755337960359,3.11,187.08,187.02,3.06]
[1755337960554,4.02840899,187.07,187.02,3.06]
[1755337960757,3.11,187.04,187.02,3.06]
[1755337960951,3.11,187.05,187.01,0.04010492]
[1755337961160,3.11,187.03,186.96,3.06]
[1755337961349,4.02712433,187.02,186.96,3.06]
[1755337961549,4.02712433,187.01,186.96,3.06]
[1755337961761,4.02712433,187.0,186.97,0.03583596]
[1755337961958,7.13712433,186.99,186.97,0.03583596]
[1755337962158,3.11,186.98,186.95,3.06]
[1755337962359,3.11,187.02,186.95,3.06]
[1755337962555,3.11,187.0,186.96,0.04059374]
[1755337962761,3.11,186.98,186.89,3.06]
[1755337962955,3.11,186.96,186.89,3.06]
[1755337963156,4.03066165,186.95,186.89,3.06]
[1755337963361,3.11,186.92,186.89,3.06]
[1755337963763,3.11,186.92,186.87,5.3475]
[1755337963968,3.11,186.92,186.82,3.06]
[1755337964154,0.03883602,186.92,186.89,3.06]
[1755337964360,0.03883602,186.92,186.84,7.80934146]
[1755337964662,0.03883602,186.92,186.85,3.06]
[1755337965163,0.03883602,186.92,186.91,5.3464]
[1755337965461,0.03883602,186.92,186.91,8.4064]
[1755337966868,0.03883602,186.92,186.82,3.06]
[1755337967059,4.03515033,186.91,186.82,3.06]
[1755337967257,3.14883602,186.92,186.82,3.06]
[1755337967456,0.03883602,186.92,186.82,3.06]
[1755337967657,4.03739549,186.91,186.82,3.06]
[1755337967866,0.03883602,186.92,186.89,5.3468]
[1755337968067,4.03739294,186.91,186.9,3.06]
[1755337968468,4.03739294,186.91,186.9,8.4067]
[1755337968667,4.03739294,186.91,186.9,3.06]
[1755337970070,0.03883602,186.92,186.91,2.85]
[1755337970475,4.0811843,186.92,186.91,2.85]
[1755337971274,0.03883602,186.92,186.91,2.85]
[1755337971473,4.08300449,186.92,186.91,2.85]
[1755337971875,3.11,186.9,186.87,2.85]
[1755337972271,3.11,186.9,186.88,2.85]
[1755337972970,0.03573912,186.91,186.82,2.85]
[1755337973375,0.03573912,186.91,186.89,2.85]
[1755337973578,3.14573912,186.91,186.89,2.85]
[1755337973877,3.14573912,186.91,186.89,8.197]
[1755337974076,3.14573912,186.91,186.89,2.85]
[1755337974870,7.1581048,186.9,186.81,359.5]
[1755337975076,3.11,186.9,186.82,2.85]
[1755337975271,3.11,186.9,186.85,5.3479]
[1755337975476,3.11,186.9,186.87,2.85]
[1755337975971,3.11,186.89,186.86,2.85]
[1755337976175,3.11,186.89,186.86,5.3478]
[1755337976374,3.11,186.89,186.87,2.85]
[1755337976677,3.14573912,186.91,186.87,2.85]
[1755337976872,4.05274208,186.9,186.87,8.1976]
[1755337977078,0.03573912,186.91,186.81,359.5]
[1755337977278,0.03573912,186.91,186.82,2.85]
[1755337977776,3.14573912,186.91,186.82,2.85]
[1755337977978,4.0569381,186.9,186.82,2.85]
[1755337978180,3.11,186.89,186.86,2.85]
[1755337978572,4.05853044,186.88,186.82,2.85]
[1755337978769,3.11,186.86,186.8,2.85]
[1755337978973,4.05799538,186.85,186.77,2.85]
[1755337979277,3.14797214,186.85,186.76,146.62]
[1755337979479,3.14797214,186.85,186.83,2.85]
[1755337980078,0.03797214,186.85,186.76,146.62]
[1755337980272,0.03797214,186.85,186.76,7.80934146]
[1755337980481,0.03797214,186.85,186.78,2.85]
[1755337980676,0.03797214,186.85,186.84,5.3484]
[1755337981175,0.03797214,186.85,186.84,8.1984]
[1755337981977,0.03797214,186.85,186.84,8.7384]
[1755337982477,359.36,186.99,186.9,5.3466]
[1755337982679,3.11,186.97,186.84,2.85]
[1755337982874,4.06636927,186.96,186.9,5.3467]
[1755337983079,3.11,186.94,186.9,5.3467]
[1755337983383,4.06636927,186.93,186.91,2.85]
[1755337983584,4.06636927,186.92,186.91,2.85]
[1755337983884,3.11,186.91,186.9,0.04055158]
[1755337984081,7.17636927,186.91,186.9,0.04055158]
[1755337986580,7.71636927,186.91,186.84,2.85]
[1755337986776,4.06636927,186.9,186.76,2.85]
[1755337986977,3.11,186.88,186.79,2.85]
[1755337987182,3.11,186.86,186.79,2.85]
[1755337987381,4.06636927,186.85,186.79,2.85]
[1755337987586,3.11,186.83,186.8,2.85]
[1755337987786,3.11,186.93,186.74,7.80934146]
[1755337987982,0.03970942,186.84,186.81,2.85]
[1755337988485,3.11,186.89,186.84,5.3484]
[1755337988686,3.11,186.87,186.84,8.1984]
[1755337988985,3.11,186.87,186.84,2.85]
[1755337989185,3.11,186.87,186.75,2.85]
[1755337989379,0.04033386,186.88,186.75,2.85]
[1755337989581,3.11,186.9,186.85,5.3479]
[1755337989582,4.05434846,186.87,186.85,5.3479]
[1755337989879,3.11,186.89,186.86,2.85]
[1755337990077,4.05434718,186.88,186.86,2.85]
[1755337990276,0.03392835,186.88,186.86,2.85]
[1755337990476,3.14392835,186.88,186.86,2.85]
[1755337992187,3.14392835,186.88,186.86,8.1978]
[1755337992384,3.14392835,186.88,186.86,2.85]
[1755337992885,3.14392835,186.88,186.76,2.85]
[1755337993082,3.14392835,186.88,186.77,2.85]
[1755337993278,3.11,186.88,186.77,2.85]
[1755337993589,3.11,186.97,186.76,44.0]
[1755337993789,3.11,186.95,186.82,2.85]
[1755337993986,3.11,186.83,186.79,2.85]
[1755337994190,3.11,186.83,186.74,7.80934146]
[1755337994391,3.11,186.83,186.81,2.85]